bitfinex-derivatives/quotes_ETHF0:USTF0_20250923
["timestamp","ask_amount","ask_price","bid_price","bid_amount"]
[1758594382463,3.9389,4166.4,4166.3,0.452]
[1758594383372,0.7311,4165.8,4165.7,41.23171]
[1758594383670,0.7311,4165.8,4165.7,41.47671]
[1758594384081,0.74044917,4165.8,4165.7,41.78621]
[1758594384269,0.43344917,4165.8,4165.7,41.78621]
[1758594385871,0.74044917,4165.8,4165.7,41.3545]
[1758594386275,0.74044917,4165.8,4165.7,41.78621]
[1758594387972,0.5147,4165.8,4165.7,41.78621]
[1758594388168,0.74053684,4165.8,4165.7,41.78621]
[1758594389370,0.74053684,4165.8,4165.7,41.3545]
[1758594389571,0.95693684,4165.8,4165.7,0.245]
[1758594389767,0.95693684,4165.8,4165.4,0.207]
[1758594389768,0.22583684,4165.8,4165.4,0.207]
[1758594390078,1.28673,4165.5,4165.4,0.207]
[1758594390266,1.51256684,4165.5,4165.4,0.451]
[1758594390770,0.8781,4165.0,4164.9,0.427]
[1758594390969,1.10393684,4165.0,4164.9,0.672]
[1758594391170,1.10393684,4165.0,4164.9,41.472]
[1758594391476,1.10393684,4165.0,4164.9,41.7905]
[1758594391673,1.10393684,4165.0,4164.9,0.245]
[1758594391876,1.10393684,4165.0,4164.9,0.4476]
[1758594392076,0.97543684,4165.0,4164.9,0.9905]
[1758594396268,0.97524027,4165.0,4164.9,0.9905]
[1758594398875,1.10374027,4165.0,4164.9,0.9905]
[1758594399085,0.97524027,4165.0,4164.9,0.9905]
[1758594400480,1.10374027,4165.0,4164.9,0.9905]
[1758594400681,1.10374027,4165.0,4164.9,2.15196568]
[1758594401380,1.10374027,4165.0,4164.9,1.83346568]
[1758594402467,1.10374027,4165.0,4164.9,2.15196568]
[1758594402679,0.97524027,4165.0,4164.9,2.15196568]
[1758594402874,0.44794027,4165.0,4164.9,2.15196568]
[1758594403077,0.53094027,4165.0,4164.9,2.15196568]
[1758594403277,0.22564027,4165.0,4164.9,2.15196568]
[1758594406380,0.22564027,4165.0,4164.9,7.55353135]
[1758594406678,3.2078,4165.1,4165.0,1.29898]
[1758594406883,3.9574,4165.1,4165.0,1.42128]
[1758594410281,3.5131,4165.1,4165.0,1.42128]
[1758594410581,0.7496,4165.1,4165.0,1.42128]
[1758594411387,0.5682,4166.0,4165.9,0.7455]
[1758594411685,0.5682,4166.0,4165.9,2.58264568]
[1758594411686,0.5728,4166.0,4165.9,2.58264568]
[1758594411987,0.8781,4166.0,4165.9,43.06414568]
[1758594412585,0.8781,4166.0,4165.9,1.40546568]
[1758594412882,0.8781,4166.0,4165.9,0.244]
[1758594413087,0.8781,4166.0,4165.0,3.3295]
[1758594413088,0.4443,4165.3,4165.2,42.27996568]
[1758594413280,0.7496,4165.3,4165.2,42.52396568]
[1758594413583,0.7496,4165.3,4165.2,42.63722568]
[1758594413780,0.7496,4165.3,4165.2,42.39322568]
[1758594414091,0.7496,4165.3,4165.2,42.63722568]
[1758594414290,0.7496,4165.3,4165.2,0.43176]
[1758594414582,0.7496,4165.3,4165.2,1.42126]
[1758594416483,3.4301,4165.7,4165.6,0.2026]
[1758594416678,4.29495318,4165.7,4165.6,1.36406568]
[1758594417080,4.60025318,4165.7,4165.6,1.79578568]
[1758594418186,4.60025318,4165.7,4165.6,2.02018568]
[1758594418388,3.9574,4165.7,4165.6,2.33868568]
[1758594418686,4.18108758,4165.7,4165.6,2.33868568]
[1758594418887,0.97328758,4165.7,4165.6,2.33868568]
[1758594420183,0.97328758,4165.7,4165.6,1.17722]
[1758594420391,4.18108758,4165.7,4165.6,0.43172]
[1758594420687,4.18108758,4165.7,4165.6,0.64852]
[1758594421889,4.18108758,4165.7,4165.6,0.89252]
[1758594422489,4.18108758,4165.7,4165.6,0.43172]
[1758594422787,0.7221,4165.4,4165.3,2.35321568]
[1758594422991,0.94578758,4165.4,4165.3,2.59721568]
[1758594423483,0.94578758,4165.4,4165.3,0.85835]
[1758594423692,0.94578758,4165.4,4165.3,0.89255]
[1758594423881,0.94578758,4165.4,4165.3,2.05401568]
[1758594424382,0.94577162,4165.4,4165.3,2.05401568]
[1758594426786,0.3074,4165.3,4165.1,40.8]
[1758594426995,0.63837162,4165.4,4164.3,3.2078]
[1758594426996,0.7221,4164.4,4164.3,4.06625]
[1758594427181,0.22367162,4164.4,4164.3,5.47171568]
[1758594427486,0.5143,4164.7,4164.6,1.19182]
[1758594427684,0.73797352,4164.7,4164.6,2.59728568]
[1758594428384,0.7337271,4164.7,4164.6,2.59728568]
[1758594428686,0.9415271,4164.7,4164.6,2.59728568]
[1758594429184,0.9415415,4164.7,4164.6,2.59728568]
[1758594429990,0.94154174,4164.7,4164.6,2.59728568]
[1758594431789,0.94154174,4164.7,4164.6,1.43582]
[1758594431987,0.94154174,4164.7,4164.6,2.59728568]
[1758594435380,0.94154174,4164.7,4164.6,0.244]
[1758594435587,0.7232,4163.9,4163.8,1.1655]
[1758594435787,0.94264174,4163.9,4163.8,2.57096568]
[1758594435988,0.94264174,4163.9,4163.8,43.37096568]
[1758594438694,0.21944174,4163.9,4163.8,43.37096568]
[1758594439592,0.21944174,4163.9,4163.8,42.2095]
[1758594440294,0.54494174,4163.9,4163.8,43.37096568]
[1758594440793,0.54494174,4163.9,4163.8,42.2095]
[1758594442192,0.54494174,4163.9,4163.8,43.37096568]
[1758594443299,0.54494174,4163.9,4163.8,42.2095]
[1758594443495,0.54494174,4163.9,4163.8,43.16116568]
[1758594444405,0.96874174,4163.9,4163.8,0.4608]
[1758594444697,0.96874174,4163.9,4163.8,2.14246568]
[1758594444899,0.75984174,4163.9,4163.8,2.14246568]
[1758594445393,0.43434174,4163.9,4163.8,2.14246568]
[1758594445599,0.21944174,4163.9,4163.8,2.14246568]
[1758594446295,0.21944174,4163.9,4163.8,0.981]
[1758594447305,0.3255,4164.5,4163.8,0.981]
[1758594447306,0.3255,4164.5,4164.4,0.86784]
[1758594447495,0.21938306,4164.5,4164.4,1.84146568]
[1758594447993,0.21938306,4164.5,4164.4,2.14846568]
[1758594448595,0.96868306,4164.5,4164.4,0.987]
[1758594448802,1.10038306,4164.5,4164.4,0.987]
[1758594449099,1.10038306,4164.5,4164.4,0.2228]
[1758594449305,1.10038306,4164.5,4164.4,0.987]
[1758594452101,1.10038306,4164.5,4164.4,0.68]
[1758594452506,0.21938306,4164.5,4164.4,0.9845]
[1758594452707,0.74648306,4164.5,4164.4,0.9845]
[1758594452901,0.96428306,4164.5,4164.4,0.9845]
[1758594453206,0.96428306,4164.5,4164.4,0.244]
[1758594453207,1.09528306,4164.5,4164.4,0.244]
[1758594454407,0.21938306,4164.5,4164.4,2.13356568]
[1758594455603,0.96428306,4164.5,4164.4,1.46596568]
[1758594455808,1.09528306,4164.5,4164.4,0.4498]
[1758594456204,1.09528306,4164.5,4164.4,41.2498]
[1758594456606,1.09528306,4164.5,4164.4,0.4498]
[1758594456808,1.09528306,4164.5,4164.4,0.244]
[1758594457003,1.09528306,4164.5,4164.3,0.43185]
[1758594457203,0.96428306,4164.4,4164.3,0.67585]
[1758594457403,0.96428306,4164.4,4164.3,0.88165]
[1758594458403,1.60933322,4164.4,4164.3,0.4498]
[1758594458613,0.96428306,4164.4,4164.3,0.244]
[1758594458905,0.96428306,4164.4,4164.0,40.8]
[1758594458906,0.2224,4164.1,4164.0,40.8]
[1758594459116,0.8759,4164.0,4163.9,0.67588]
[1758594459410,1.09528306,4164.0,4163.9,1.40398]
[1758594460001,1.09528306,4164.0,4163.9,1.09948]
[1758594460206,1.09528306,4164.0,4163.9,0.88168]
[1758594461413,1.09629303,4164.0,4163.9,0.88168]
[1758594461613,1.09629303,4164.0,4163.9,0.67588]
[1758594461916,1.09629303,4164.0,4163.9,0.88168]
[1758594462503,1.09629303,4164.0,4163.9,1.40398]
[1758594463515,0.8759,4164.0,4163.9,1.40398]
[1758594463715,0.7449,4164.0,4163.9,1.40398]
[1758594464912,0.8759,4164.0,4163.9,1.40398]
[1758594465709,1.74149278,4164.0,4163.9,0.6676]
[1758594465908,1.52102781,4164.0,4163.9,0.6676]
[1758594466112,1.7414837,4164.0,4163.9,0.6676]
[1758594466311,1.52102781,4164.0,4163.9,0.9721]
[1758594466808,1.74145229,4164.0,4163.9,0.9721]
[1758594467009,1.09632448,4164.0,4163.9,0.9721]
[1758594467214,0.8759,4164.0,4163.9,0.9721]
[1758594467711,0.8759,4164.0,4163.9,0.7281]
[1758594467915,2.17309471,4164.0,4163.8,0.244]
[1758594468108,1.61021471,4163.9,4163.8,0.9721]
[1758594469815,1.61021471,4163.9,4163.8,0.2058]
[1758594470015,0.131,4163.5,4163.4,41.1045]
[1758594470208,0.65610277,4163.5,4163.4,41.78044]
[1758594470608,0.7449,4163.1,4163.0,0.5103]
[1758594470921,4.17310277,4163.1,4163.0,0.9721]
[1758594471705,4.17310277,4163.1,4162.9,0.024022]
[1758594471706,0.43198,4163.0,4162.9,0.024022]
[1758594471910,0.7449,4162.4,4162.3,0.5103]
[1758594472109,0.96530277,4162.4,4162.3,0.88185]
[1758594472309,0.96530277,4162.4,4162.3,41.68185]
[1758594472510,0.96530277,4162.4,4162.3,41.98635]
[1758594472705,0.96530277,4162.4,4162.3,1.40415]
[1758594473112,0.96530277,4162.4,4162.3,0.88185]
[1758594474211,0.96530277,4162.4,4162.3,0.4498]
[1758594474518,0.96530277,4162.4,4161.5,1.47458633]
[1758594474519,0.5271,4161.8,4161.7,1.16022]
[1758594474707,0.4402,4161.3,4161.2,1.16027]
[1758594474913,0.7449,4161.3,4161.2,42.20427]
[1758594475611,0.7449,4161.3,4161.2,41.68197]
[1758594475804,0.2224,4161.5,4161.4,1.16025]
[1758594476006,0.44168324,4161.5,4161.4,1.16025]
[1758594476208,0.74638324,4161.5,4161.4,1.16025]
[1758594476409,0.5271,4161.5,4161.4,1.16025]
[1758594476810,3.779,4162.0,4161.9,0.6379]
[1758594477006,3.99811355,4162.0,4161.9,0.4321]
[1758594477411,4.30281355,4162.0,4161.9,0.4321]
[1758594477616,4.30281355,4162.0,4161.9,0.6379]
[1758594479320,4.30281355,4162.0,4161.9,0.4321]
[1758594479715,4.30281355,4162.0,4161.9,0.6379]
[1758594480022,4.30281355,4162.0,4161.5,0.5485]
[1758594480023,0.7449,4161.4,4161.3,0.85576]
[1758594480318,1.1199,4162.0,4161.9,0.6379]
[1758594480613,4.30252492,4162.0,4161.9,0.6379]
[1758594480918,4.30252492,4162.0,4161.9,1.1851]
[1758594481305,4.17152492,4162.0,4161.9,1.1851]
[1758594481508,3.2078,4162.0,4161.9,1.1851]
[1758594481716,3.7303,4162.0,4161.9,1.1851]
[1758594482709,3.9359,4162.0,4161.9,1.1851]
[1758594483423,4.0599,4162.0,4161.9,1.1851]
[1758594484016,4.0599,4162.0,4161.9,0.8557]
[1758594484815,4.0599,4162.0,4161.9,0.4321]
[1758594485924,4.27872846,4162.0,4161.9,0.4321]
[1758594486718,4.0599,4162.0,4161.9,0.8594]
[1758594486923,4.0599,4162.0,4161.9,1.1888]
[1758594487421,4.27884519,4162.0,4161.9,0.4321]
[1758594487715,3.43210151,4162.0,4161.9,1.1888]
[1758594487913,3.2078,4162.0,4161.9,5.1888]
[1758594488113,0.131,4162.5,4162.4,0.7567]
[1758594488114,3.7303,4162.5,4162.4,0.7567]
[1758594488334,3.95462015,4162.5,4162.4,1.0007]
[1758594488525,4.16022015,4162.5,4162.4,1.0007]
[1758594489212,0.22432015,4162.5,4162.4,1.0007]
[1758594490323,0.22432015,4162.5,4162.4,41.8007]
[1758594490623,0.5225,4162.8,4162.7,0.4273]
[1758594490826,0.2245558,4162.8,4162.7,2.34538633]
[1758594491521,0.2245558,4162.8,4162.7,2.77740633]
[1758594491715,0.5276558,4162.8,4162.7,2.77740633]
[1758594491916,0.7470558,4162.8,4162.7,2.77740633]
[1758594492627,0.4439558,4162.8,4162.7,2.77740633]
[1758594493121,0.9526558,4162.8,4162.7,0.67602]
[1758594493429,0.9526558,4162.8,4162.7,41.47602]
[1758594493725,0.9526558,4162.8,4162.7,0.67602]
[1758594493916,0.6495558,4162.8,4162.1,3.2078]
[1758594494122,0.7281,4162.3,4162.2,0.43207]
[1758594494329,0.8521,4162.0,4161.9,0.244]
[1758594494528,1.0766558,4162.0,4161.9,0.244]
[1758594494719,0.4321,4161.9,4161.5,0.43213]
[1758594494925,0.6516558,4162.0,4161.5,0.43213]
[1758594494926,0.7281,4161.6,4161.5,0.43213]
[1758594495126,0.9526558,4161.6,4161.5,0.43213]
[1758594495429,0.9526558,4161.6,4161.5,0.64333]
[1758594496224,0.9526558,4161.6,4161.5,0.2112]
[1758594496420,0.4435,4161.5,4161.4,0.43214]
[1758594496729,1.0959558,4161.5,4161.4,0.64874]
[1758594497523,1.0959558,4161.5,4161.4,0.43214]
[1758594497726,0.74,4161.4,4161.3,0.245]
[1758594498023,0.9645558,4161.4,4161.3,0.245]
[1758594499930,0.4435,4160.5,4160.4,0.43225]
[1758594500125,1.0959558,4160.5,4160.4,0.43225]
[1758594500429,0.4279,4160.3,4160.2,0.43227]
[1758594500632,0.2231,4159.3,4159.2,0.43238]
[1758594500929,0.2245558,4159.4,4159.3,0.7438]
[1758594501131,0.5169,4159.5,4159.4,0.86466]
[1758594501334,0.24750664,4159.5,4159.4,0.86466]
[1758594501829,0.24750664,4159.5,4159.4,1.17616]
[1758594502134,0.24750664,4159.5,4159.4,5.17616]
[1758594502927,6.64e-06,4159.5,4159.4,5.17616]
[1758594503123,0.5169,4160.4,4160.3,0.5272]
[1758594503432,0.5169,4160.8,4160.7,1.17602]
[1758594503631,0.74,4160.8,4160.7,1.17602]
[1758594504534,0.74,4160.1,4160.0,3.4244]
[1758594504833,0.74,4160.1,4160.0,0.2166]
[1758594505133,0.74,4160.1,4160.0,1.17609]
[1758594505526,0.74,4160.1,4160.0,0.86459]
[1758594505723,0.74,4160.1,4160.0,0.64889]
[1758594505926,0.74,4160.1,4160.0,0.43229]
[1758594507239,0.8714,4160.0,4159.9,0.245]
[1758594508236,0.5593,4160.0,4159.8,0.43231]
[1758594508436,0.74,4159.9,4159.8,0.43231]
[1758594509842,0.74,4159.9,4159.8,0.64891]
[1758594511142,0.74,4159.9,4159.8,0.43231]
[1758594511341,0.74,4159.9,4159.8,0.65571]
[1758594512239,0.333,4160.2,4160.1,0.43228]
[1758594512446,0.333,4160.4,4160.3,0.43226]
[1758594512736,0.5438,4160.4,4160.3,1.44426]
[1758594513044,0.8854,4161.0,4160.9,0.6556]
[1758594513240,1.52763254,4161.0,4160.9,0.6556]
[1758594513541,1.52763254,4161.0,4160.6,0.43223]
[1758594513542,0.2108,4160.7,4160.6,0.43223]
[1758594513733,0.2108,4160.7,4160.3,0.43226]
[1758594513734,0.754,4160.4,4160.3,0.43226]
[1758594513940,3.9618,4160.4,4160.3,0.43226]
[1758594514147,3.9618,4160.4,4160.3,0.65566]
[1758594515048,4.20502849,4160.4,4160.3,0.65566]
[1758594515844,0.754,4160.3,4160.2,0.43226]
[1758594516046,0.99722849,4160.3,4160.2,0.43226]
[1758594516842,0.754,4160.1,4160.0,0.245]
[1758594517048,0.99722849,4160.1,4160.0,0.245]
[1758594517844,0.99722849,4160.1,4159.9,0.4323]
[1758594518049,1.12142849,4160.0,4159.9,0.4323]
[1758594518245,0.24322849,4160.0,4159.9,1.1993]
[1758594518445,0.421,4160.2,4160.1,0.767]
[1758594518748,0.67030596,4160.2,4160.0,0.43229]
[1758594519049,1.00330596,4160.1,4160.0,0.65569]
[1758594519354,0.754,4159.8,4159.7,0.67732]
[1758594519646,0.754,4159.4,4159.3,0.67737]
[1758594519854,1.00330596,4159.4,4159.3,0.67737]
[1758594520154,1.00330596,4159.4,4159.3,0.43237]
[1758594520648,1.00330596,4159.4,4159.1,0.43238]
[1758594520850,0.754,4159.2,4159.1,0.43238]
[1758594521148,0.24930596,4159.2,4159.1,1.19938]
[1758594521351,0.754,4159.6,4159.5,0.86785]
[1758594521553,1.00348347,4159.6,4159.5,1.19935]
[1758594521744,0.24948347,4159.6,4159.5,1.56945]
[1758594522245,0.79328347,4159.6,4159.5,1.44435]
[1758594522552,1.00348347,4159.6,4159.5,0.90075]
[1758594522752,1.00348347,4159.6,4159.5,1.44435]
[1758594523747,0.46028347,4159.6,4159.5,1.44435]
[1758594524251,0.79328347,4159.6,4159.5,1.44435]
[1758594524844,0.24948347,4159.6,4159.5,1.56945]
[1758594525349,0.24948347,4159.6,4159.5,4.77725]
[1758594527152,0.333,4160.3,4160.2,0.43227]
[1758594527452,3.6288,4160.8,4160.7,0.86772]
[1758594527646,4.60665723,4160.8,4160.7,1.19922]
[1758594528649,0.754,4160.8,4160.7,1.19922]
[1758594528955,0.754,4160.8,4160.7,1.44422]
[1758594529253,0.2108,4160.8,4160.7,1.44422]
[1758594529847,0.754,4160.8,4160.7,0.86772]
[1758594530146,0.754,4160.2,4160.1,0.43228]
[1758594530849,0.1242,4160.5,4160.0,3.2078]
[1758594530850,0.333,4160.1,4160.0,3.2078]
[1758594531048,0.1242,4160.0,4159.7,0.43232]
[1758594531257,0.754,4159.8,4159.5,0.43234]
[1758594531451,0.421,4159.6,4159.5,0.43234]
[1758594531649,0.754,4159.6,4159.5,0.43234]
[1758594533549,0.1242,4160.0,4159.0,0.3315]
[1758594533550,0.333,4159.4,4159.0,0.5606]
[1758594533751,0.1242,4160.0,4159.0,0.5606]
[1758594533752,0.421,4159.7,4159.6,0.65573]
[1758594533947,0.421,4159.7,4159.4,0.43235]
[1758594534159,0.43231,4159.9,4159.4,0.43235]
[1758594534160,0.8782,4159.5,4159.4,0.86785]
[1758594534956,0.8782,4159.5,4159.4,1.19935]
[1758594536459,0.8782,4159.5,4159.4,0.4355]
[1758594536661,0.8782,4159.5,4159.4,0.6815]
[1758594538560,0.754,4159.5,4159.4,1.013]
[1758594538866,0.2108,4160.2,4160.1,0.767]
[1758594539369,1.00109938,4160.2,4160.1,0.4355]
[1758594539955,1.00109938,4160.2,4160.1,0.767]
[1758594541267,1.00109938,4160.2,4160.1,0.4355]
[1758594541763,0.24709938,4160.2,4160.1,0.7625]
[1758594542562,0.24709938,4160.2,4160.1,4.7625]
[1758594543160,0.3156,4161.0,4160.9,0.4322]
[1758594543364,0.77322152,4161.0,4160.9,1.1109]
[1758594543665,0.77322152,4161.0,4160.9,1.4379]
[1758594543859,1.11142152,4161.0,4160.9,1.4379]
[1758594544061,0.98802152,4161.0,4160.9,1.4379]
[1758594545362,0.24382152,4161.0,4160.9,1.4379]
[1758594545964,0.24382152,4161.0,4160.9,42.2379]
[1758594546557,0.55942152,4161.0,4160.9,41.8057]
[1758594546762,0.55942152,4161.0,4160.9,42.2379]
[1758594546963,0.68282152,4161.0,4160.9,41.9109]
[1758594548166,0.68282152,4161.0,4160.9,41.045]
[1758594548965,0.4286,4160.7,4160.3,3.5348]
[1758594549173,0.4286,4160.7,4160.4,0.245]
[1758594549174,0.552,4160.5,4160.4,0.245]
[1758594549467,0.8676,4160.5,4160.4,0.46]
[1758594549671,0.1234,4160.5,4159.8,0.327]
[1758594549970,0.7442,4159.9,4159.8,0.7607]
[1758594550274,0.7442,4159.9,4159.8,1.0057]
[1758594550467,0.7442,4159.9,4159.8,0.46]
[1758594550773,0.1234,4160.0,4159.7,0.6787]
[1758594550957,3.2078,4160.1,4159.8,0.43231]
[1758594551165,3.64003,4160.7,4160.1,0.327]
[1758594551362,4.38423,4160.7,4160.6,0.7607]
[1758594551563,4.38423,4160.7,4160.6,0.215]
[1758594552472,0.2138,4160.5,4160.4,1.0057]
[1758594552767,3.2078,4160.7,4160.6,0.7607]
[1758594552964,3.7372,4160.7,4160.6,0.7607]
[1758594553169,0.7442,4160.7,4160.6,0.4337]
[1758594553369,0.7442,4160.7,4160.6,0.7607]
[1758594554074,0.7442,4160.7,4160.6,0.215]
[1758594555173,0.98829001,4160.7,4160.6,0.215]
[1758594556172,0.84223,4160.6,4160.5,0.245]
[1758594556368,1.39022001,4160.6,4160.5,0.245]
[1758594556572,0.7139,4160.2,4160.1,0.67728]
[1758594556763,1.08636001,4160.2,4159.8,3.64011]
[1758594556968,0.842,4160.0,4159.9,0.4643]
[1758594557173,1.08609001,4160.0,4159.9,0.4643]
[1758594557771,1.08609001,4160.0,4159.9,0.2193]
[1758594557975,0.7139,4159.7,4159.6,0.87583]
[1758594558176,0.95799001,4159.7,4159.6,1.0036]
[1758594559372,0.5062,4159.3,4159.2,0.87588]
[1758594559568,0.75029001,4159.3,4159.2,1.43698]
[1758594561472,0.44639001,4159.3,4159.2,1.43698]
[1758594561673,0.24409001,4159.3,4159.2,1.43698]
[1758594564878,0.24409001,4159.3,4159.2,1.19098]
[1758594565077,0.24409001,4159.3,4159.2,1.43598]
[1758594570081,0.75029001,4159.3,4159.2,1.43598]
[1758594570376,0.44639001,4159.3,4159.2,1.43598]
[1758594570576,0.44639001,4159.3,4159.2,1.19098]
[1758594570883,0.99509001,4159.3,4159.2,1.43598]
[1758594571690,0.77059001,4159.3,4159.2,1.43598]
[1758594571885,0.44639001,4159.3,4159.2,1.43598]
[1758594572073,0.24409001,4159.3,4159.2,1.43598]
[1758594573876,0.24409001,4159.3,4159.1,44.81740607]
[1758594573877,0.3242,4159.2,4159.1,40.8]
[1758594574072,0.3242,4159.2,4158.8,3.95282]
[1758594574073,0.7625,4158.9,4158.8,3.6377]
[1758594574275,1.00659001,4158.9,4158.8,3.8827]
[1758594574583,1.00659001,4158.9,4158.8,44.6827]
[1758594574781,1.00659001,4158.9,4158.8,44.9953]
[1758594575883,1.00659001,4158.9,4158.8,41.7875]
[1758594576282,1.00666897,4158.9,4158.8,41.7875]
[1758594577683,0.24416897,4158.9,4158.8,44.9953]
[1758594579376,0.2138,4159.5,4159.4,0.216]
[1758594579580,0.8865,4159.5,4159.4,0.6749]
[1758594579786,0.8865,4159.5,4159.4,1.10726]
[1758594580084,0.8865,4159.5,4159.4,0.6749]
[1758594580270,0.8865,4159.5,4159.4,0.9875]
[1758594582083,0.8865,4160.0,4159.9,0.216]
[1758594582277,0.2138,4160.0,4159.9,0.9875]
[1758594582482,0.538,4160.3,4160.2,0.4299]
[1758594582690,0.7625,4160.3,4160.2,0.9875]
[1758594582988,0.7625,4160.3,4160.2,2.15156385]
[1758594583185,0.538,4160.6,4160.5,0.7425]
[1758594583389,0.538,4160.6,4160.5,2.58380385]
[1758594584682,0.538,4160.6,4160.5,1.41974]
[1758594585992,0.7625,4160.6,4160.5,1.41974]
[1758594586702,0.538,4160.6,4160.5,1.41974]
[1758594587786,0.2138,4160.6,4160.5,1.41974]
[1758594588086,3.4216,4161.2,4161.1,0.64818]
[1758594588291,3.7458,4161.2,4161.1,1.17468]
[1758594588594,3.9703,4161.2,4161.1,0.4299]
[1758594589192,3.9703,4161.2,4161.1,0.216]
[1758594589485,0.4383,4160.4,4160.3,4.31496]
[1758594589691,0.2138,4160.6,4160.5,1.17473]
[1758594589891,0.3242,4160.8,4160.7,0.43222]
[1758594590078,0.7625,4160.8,4160.7,0.86212]
[1758594590283,0.7625,4160.8,4160.7,1.17472]
[1758594591391,1.00326315,4160.8,4160.7,1.17472]
[1758594593794,1.00326315,4160.8,4160.7,0.86212]
[1758594594397,1.00308583,4160.8,4160.7,0.43222]
[1758594594597,1.00308583,4160.8,4160.7,0.64822]
[1758594595989,0.4383,4160.3,4160.2,0.43227]
[1758594596189,1.00308583,4160.3,4160.2,0.67727]
[1758594596384,0.2138,4160.1,4160.0,0.43229]
[1758594596593,1.00308583,4160.1,4160.0,0.461]
[1758594598091,1.00308583,4160.1,4160.0,0.9875]
[1758594599092,1.00308583,4160.1,4160.0,0.461]
[1758594599287,1.00308583,4160.1,4160.0,0.9875]
[1758594599894,1.00308583,4160.1,4160.0,0.7425]
[1758594600095,1.00308583,4160.1,4160.0,0.6749]
[1758594601106,1.00308583,4160.1,4160.0,0.461]
[1758594601397,1.28465,4159.5,4159.4,0.2208]
[1758594601600,0.73606,4159.4,4159.1,3.64018]
[1758594601806,0.423,4159.2,4159.1,4.08248]
[1758594602009,0.96728583,4159.2,4159.1,4.63468]
[1758594602304,0.96728583,4159.2,4159.1,45.43468]
[1758594602507,0.45118583,4159.2,4159.1,45.43468]
[1758594602710,0.24058583,4159.2,4159.1,45.43468]
[1758594602999,0.8616,4160.0,4159.6,0.43233]
[1758594603202,0.5143,4160.0,4159.9,1.1818]
[1758594603402,0.7549508,4160.0,4159.9,1.4268]
[1758594603610,0.2406508,4160.0,4159.9,1.4268]
[1758594603902,3.2078,4160.7,4160.6,0.43223]
[1758594603903,0.3037,4160.7,4160.6,0.43223]
[1758594604097,0.2406235,4160.7,4160.6,1.42673]
[1758594604304,0.5143,4161.5,4161.4,0.43215]
[1758594604497,0.2106,4161.5,4161.4,42.22665]
[1758594604698,0.5143,4161.8,4161.7,0.528]
[1758594604894,0.5143,4161.8,4161.7,0.9955]
[1758594605097,0.7267,4161.8,4161.7,0.246]
[1758594605299,0.7267,4161.8,4161.7,0.4668]
[1758594605498,3.2078,4161.9,4161.8,0.87441]
[1758594605704,0.5143,4162.1,4162.0,0.7495]
[1758594606001,4.0601,4162.5,4162.4,0.7495]
[1758594606207,4.0601,4162.5,4162.4,0.4423]
[1758594606405,0.2106,4161.8,4161.7,0.528]
[1758594606603,0.4293,4161.5,4160.8,0.3072]
[1758594606910,0.4293,4161.5,4161.4,41.046]
[1758594607105,0.3037,4161.5,4161.4,44.2538]
[1758594607304,0.3037,4161.5,4161.4,44.561]
[1758594607508,0.4293,4161.5,4161.4,41.046]
[1758594607707,0.4293,4161.5,4161.4,0.246]
[1758594607902,0.8523,4161.5,4161.4,0.246]
[1758594608303,0.7267,4161.4,4161.3,0.246]
[1758594608510,0.2106,4161.1,4161.0,41.23218]
[1758594608709,0.5143,4161.1,4161.0,41.47818]
[1758594609106,0.5143,4161.1,4160.9,3.2078]
[1758594609300,0.3037,4161.9,4161.1,0.3072]
[1758594609508,0.7267,4161.9,4161.8,0.2208]
[1758594609803,0.7267,4161.6,4161.5,40.8]
[1758594610203,0.7267,4161.6,4161.5,41.1072]
[1758594610600,0.7267,4161.6,4160.8,3.2078]
[1758594610795,0.3037,4160.8,4160.4,0.73945]
[1758594611008,0.5143,4160.5,4160.4,1.18175]
[1758594611197,0.5143,4160.5,4160.4,41.98175]
[1758594611403,0.423,4160.2,4160.1,0.246]
[1758594611598,0.7267,4160.2,4160.1,0.246]
[1758594611799,0.7267,4160.2,4160.1,0.4668]
[1758594611998,0.7267,4160.2,4160.1,0.246]
[1758594612213,0.7267,4160.2,4160.1,0.4668]
[1758594612602,0.7267,4160.2,4160.1,0.246]
[1758594613107,0.7267,4160.2,4160.1,0.9955]
[1758594613307,0.5143,4160.2,4160.1,0.9955]
[1758594613510,0.7267,4160.2,4160.1,0.6893]
[1758594613705,3.64001,4160.9,4160.1,0.7757]
[1758594613910,0.7267,4160.8,4160.7,0.2208]
[1758594614215,0.5143,4160.8,4160.7,0.7495]
[1758594614512,0.8523,4161.5,4161.4,0.2208]
[1758594614703,0.7267,4161.5,4161.4,0.6893]
[1758594614905,0.1256,4162.0,4161.4,0.247]
[1758594615100,0.3037,4162.1,4161.9,0.3072]
[1758594615314,0.94801211,4162.0,4161.9,0.3072]
[1758594615809,0.76591211,4162.0,4161.8,0.247]
[1758594616111,0.3177,4161.9,4161.8,0.247]
[1758594616312,0.55054484,4161.9,4161.8,0.247]
[1758594616608,0.1216,4161.5,4161.4,0.247]
[1758594616806,0.67214484,4161.5,4161.4,0.247]
[1758594617008,0.67214484,4161.5,4161.4,41.047]
[1758594618212,0.67214484,4161.5,4161.4,0.247]
[1758594618407,0.23284484,4161.5,4161.4,0.5706]
[1758594618717,0.23284484,4161.5,4161.4,41.3706]
[1758594619413,0.23284484,4161.5,4161.4,0.5706]
[1758594619808,0.23284484,4161.5,4161.4,41.3706]
[1758594621911,0.55054484,4161.5,4161.4,40.8]
[1758594622105,0.23284484,4161.5,4161.4,41.047]
[1758594622308,0.23284484,4161.5,4161.4,41.3706]
[1758594624613,0.5322,4162.5,4162.4,0.7672]
[1758594624815,0.76481595,4162.5,4162.4,1.44624]
[1758594625012,1.53744595,4162.5,4162.4,0.247]
[1758594628615,1.10541595,4162.5,4162.4,0.247]